bitfinex/quotes_SOLUSD_20250829
["timestamp","ask_amount","ask_price","bid_price","bid_amount"]
[1756484143760,17.64260865,205.11,205.08,4.87614589]
[1756484144071,16.96260865,205.12,205.08,4.87614589]
[1756484144242,17.10477022,205.14,205.08,21.83875454]
[1756484144435,23.84292037,205.13,205.08,21.83875454]
[1756484144636,6.88031172,205.12,205.08,4.87614589]
[1756484144863,17.64260865,205.13,205.08,4.87614589]
[1756484145044,16.96260865,205.17,205.11,21.83804134]
[1756484145356,6.88301364,205.16,205.11,21.83804134]
[1756484145542,6.88301364,205.15,205.04,26.0]
[1756484145745,16.96260865,205.13,205.07,16.96260865]
[1756484145951,16.96260865,205.14,205.08,16.96260865]
[1756484146159,16.96260865,205.15,205.09,16.96260865]
[1756484146357,17.10477022,205.1,205.02,4.87757291]
[1756484146539,23.84844655,205.09,205.03,16.96260865]
[1756484146740,26.0,205.11,205.02,5.57757291]
[1756484146947,6.89228554,205.1,205.06,16.96260865]
[1756484147147,16.96260865,205.11,205.07,4.87638367]
[1756484147346,6.89218874,205.1,205.07,4.87638367]
[1756484147566,6.90000862,205.09,205.03,52.01733502]
[1756484147867,17.64260865,205.1,205.05,16.96260865]
[1756484148050,6.90136351,205.09,205.05,16.96260865]
[1756484148237,6.91252944,205.08,205.05,16.96260865]
[1756484148441,0.68,205.15,205.07,16.96260865]
[1756484148657,6.91353388,205.14,205.09,16.96260865]
[1756484148862,17.64260865,205.15,205.1,16.96260865]
[1756484148863,6.91353388,205.13,205.1,16.96260865]
[1756484149068,6.91353388,205.12,205.07,17.06734285]
[1756484149265,3.46607426,205.11,205.08,0.7]
[1756484149471,6.93214852,205.1,205.08,47.82]
[1756484149670,6.93106566,205.09,205.02,0.7]
[1756484149849,6.93106566,205.08,205.02,0.7]
[1756484150050,6.93106566,205.07,205.02,0.7]
[1756484150245,6.94502104,205.06,205.01,73.15]
[1756484150445,6.94492264,205.05,205.02,5.57757291]
[1756484150659,16.96260865,205.12,205.05,26.0]
[1756484150856,6.94484686,205.11,205.07,16.96260865]
[1756484151061,6.94484686,205.11,205.05,26.7]
[1756484151062,6.94484686,205.1,205.06,4.87662147]
[1756484151257,6.94488044,205.09,205.06,5.57662147]
[1756484151460,0.68,205.19,205.08,16.96260865]
[1756484151663,6.95537502,205.18,205.1,26.0]
[1756484151868,6.95537502,205.17,205.1,26.0]
[1756484152078,6.95537502,205.16,205.11,0.7]
[1756484152384,3.86548528,205.18,205.16,26.0]
[1756484152875,3.86548528,205.18,205.16,42.96260865]
[1756484153075,3.86548528,205.18,205.17,4.87400692]
[1756484153450,3.86548528,205.18,205.12,0.7]
[1756484153654,4.52802069,205.21,205.19,26.0]
[1756484153977,0.68,205.34,205.23,26.0]
[1756484154171,0.68,205.34,205.29,16.96260865]
[1756484154549,0.68,205.34,205.26,47.06]
[1756484154747,0.68,205.34,205.29,16.96260865]
[1756484155054,0.68,205.34,205.29,21.83376652]
[1756484155255,0.68,205.34,205.29,4.87115787]
[1756484155577,0.68,205.34,205.29,21.83376652]
[1756484156079,10.74616141,205.3,205.27,16.96260865]
[1756484156575,10.74616141,205.3,205.28,16.96260865]
[1756484156966,10.74616141,205.3,205.27,16.96260865]
[1756484157167,0.68,205.29,205.24,4.87234457]
[1756484157366,10.06616141,205.3,205.25,16.96260865]
[1756484157569,10.74616141,205.3,205.26,16.96260865]
[1756484157769,0.68,205.29,205.26,16.96260865]
[1756484157964,0.68,205.29,205.25,16.96260865]
[1756484158278,0.68,205.28,205.25,16.96260865]
[1756484158471,0.68,205.28,205.26,16.96260865]
[1756484158671,0.68,205.28,205.25,16.96260865]
[1756484159259,0.68,205.28,205.26,4.87186982]
[1756484160066,10.06616141,205.3,205.23,4.87258198]
[1756484160067,17.64260865,205.27,205.23,4.87258198]
[1756484160377,16.96260865,205.24,205.18,16.96260865]
[1756484160586,17.62260865,205.24,205.17,46.96]
[1756484160761,17.62260865,205.24,205.18,16.96260865]
[1756484160961,16.96260865,205.23,205.17,63.92260865]
[1756484161193,17.62260865,205.22,205.16,16.96260865]
[1756484161377,16.96260865,205.21,205.16,16.96260865]
[1756484161579,0.14216157,205.23,205.14,16.96260865]
[1756484161580,17.62260865,205.2,205.14,16.96260865]
[1756484161786,0.66,205.2,205.13,46.96]
[1756484161989,16.96260865,205.19,205.13,16.96260865]
[1756484162163,17.62260865,205.2,205.14,16.96260865]
[1756484162475,0.66,205.2,205.15,16.96260865]
[1756484162864,0.66,205.19,205.15,16.96260865]
[1756484163262,0.14216157,205.24,205.18,16.96260865]
[1756484163575,17.10477022,205.24,205.16,4.87424449]
[1756484163772,17.62260865,205.23,205.17,16.96260865]
[1756484163976,17.62260865,205.23,205.18,16.96260865]
[1756484164273,0.66,205.22,205.18,16.96260865]
[1756484164487,16.96260865,205.23,205.18,16.96260865]
[1756484164488,0.66,205.21,205.19,4.87353184]
[1756484164680,16.96260865,205.23,205.19,4.87353184]
[1756484164863,0.66,205.21,205.19,4.87353184]
[1756484165359,0.66,205.2,205.18,4.87375817]
[1756484165563,0.80216157,205.23,205.18,4.87375817]
[1756484165763,0.66,205.22,205.18,4.87375817]
[1756484165974,0.66,205.21,205.18,4.87375817]
[1756484166180,0.66,205.2,205.18,4.87375817]
[1756484166484,0.66,205.2,205.17,4.87400692]
[1756484167171,0.66,205.2,205.17,21.83661557]
[1756484167466,0.66,205.2,205.17,4.87400692]
[1756484167895,0.66,205.19,205.13,51.77495734]
[1756484168098,16.96260865,205.16,205.1,4.8756704]
[1756484168299,17.62260865,205.15,205.1,4.8756704]
[1756484168483,17.62260865,205.14,205.09,4.87590813]
[1756484168668,0.66,205.14,205.09,21.83851678]
[1756484169066,16.96260865,205.15,205.09,21.83851678]
[1756484169386,0.14216157,205.18,205.14,16.96260865]
[1756484169567,42.96260865,205.19,205.13,16.96260865]
[1756484169763,17.62260865,205.18,205.09,17.06567847]
[1756484169995,26.0,205.13,205.06,0.03]
[1756484170191,26.0,205.04,205.01,0.03]
[1756484170396,26.0,205.04,204.96,0.03]
[1756484170397,0.14216157,205.0,204.96,0.03]
[1756484170697,62.0964894,204.99,204.96,0.03]
[1756484170866,26.80216157,204.99,204.96,0.03]
[1756484171179,43.76477022,204.99,204.96,0.03]
[1756484171977,0.14216157,205.02,204.98,17.16260865]
[1756484172286,0.66,205.02,204.98,0.2]
[1756484172685,16.96260865,205.03,204.98,0.2]
[1756484172885,0.66,205.08,205.02,16.96260865]
[1756484173076,4.82569481,205.19,205.06,16.96260865]
[1756484173077,0.66,205.11,205.06,16.96260865]
[1756484173270,0.66,205.11,205.05,16.96260865]
[1756484173470,0.66,205.11,205.01,0.09]
[1756484173471,0.66,205.14,205.07,16.96260865]
[1756484173683,0.66,205.14,205.09,16.96260865]
[1756484173969,12.18201728,205.23,205.09,16.96260865]
[1756484173970,0.66,205.22,205.13,16.96260865]
[1756484174171,0.72,205.25,205.19,16.96260865]
[1756484174393,17.68260865,205.25,205.14,0.09]
[1756484174600,0.72,205.25,205.11,0.09]
[1756484174783,16.96260865,205.19,205.13,16.96260865]
[1756484175098,16.96260865,205.2,205.14,16.96260865]
[1756484175296,16.96260865,205.2,205.11,26.0]
[1756484175297,17.62260865,205.21,205.15,16.96260865]
[1756484175596,0.66,205.21,205.15,16.96260865]
[1756484175776,0.06,205.25,205.15,4.87441726]
[1756484175983,16.96260865,205.23,205.18,16.96260865]
[1756484176286,16.96260865,205.24,205.18,16.96260865]
[1756484176488,16.96260865,205.2,205.15,4.87441726]
[1756484176680,0.66,205.23,205.15,4.87441726]
[1756484176875,16.96260865,205.22,205.16,16.96260865]
[1756484177191,16.96260865,205.22,205.15,4.87441726]
[1756484177192,16.96260865,205.18,205.1,4.8756704]
[1756484177396,16.96260865,205.17,205.12,16.96260865]
[1756484177576,0.06,205.25,205.23,26.0]
[1756484177776,0.06,205.25,205.24,21.92495322]
[1756484177982,0.06,205.28,205.24,47.92495322]
[1756484178182,0.06,205.28,205.27,16.96260865]
[1756484178379,0.06,205.28,205.24,30.87234457]
[1756484178778,0.06,205.28,205.24,47.83495322]
[1756484178980,17.02260865,205.28,205.24,30.87234457]
[1756484179187,0.06,205.28,205.24,30.87234457]
[1756484180894,16.96260865,205.26,205.2,4.87308595]
[1756484181096,0.06,205.28,205.24,16.96260865]
[1756484181399,0.06,205.28,205.21,13.59559401]
[1756484181400,17.02260865,205.28,205.26,26.0]
[1756484181898,0.06,205.28,205.26,30.87165173]
[1756484182197,0.06,205.3,205.29,26.0]
[1756484182499,0.06,205.3,205.29,42.96260865]
[1756484182698,0.06,205.3,205.29,42.99260865]
[1756484183019,0.06,205.3,205.29,56.58820266]
[1756484183181,1e-08,205.3,205.29,103.28820266]
[1756484183382,1e-08,205.3,205.29,39.59559401]
[1756484183690,1e-08,205.3,205.29,56.58820266]
[1756484183878,1e-08,205.3,205.29,82.45936053]
[1756484184076,1e-08,205.3,205.29,129.76863788]
[1756484184283,1e-08,205.3,205.29,129.2815221]
[1756484184900,0.1,205.46,205.37,26.0]
[1756484184901,0.1,205.41,205.37,26.0]
[1756484185081,0.1,205.41,205.38,46.66]
[1756484185283,0.1,205.41,205.37,42.96260865]
[1756484185500,0.1,205.41,205.38,46.66]
[1756484185680,16.96260865,205.39,205.33,42.96260865]
[1756484186084,16.96260865,205.39,205.34,4.86997175]
[1756484186493,16.96260865,205.36,205.34,4.86997175]
[1756484186801,16.96260865,205.37,205.34,4.86997175]
[1756484187010,0.1,205.41,205.34,4.86997175]
[1756484187207,0.1,205.41,205.4,26.0]
[1756484187412,0.1,205.41,205.4,65.70259001]
[1756484187588,0.1,205.41,205.4,19.06259001]
[1756484187783,0.1,205.41,205.36,0.14216157]
[1756484187784,17.06260865,205.41,205.36,46.64]
[1756484187993,17.06260865,205.41,205.37,4.86926035]
[1756484187994,0.1,205.41,205.37,4.86926035]
[1756484188495,17.06260865,205.41,205.37,4.86926035]
[1756484188701,0.1,205.41,205.37,21.831869]
[1756484188911,0.1,205.41,205.37,17.04241124]
[1756484189085,17.62260865,205.4,205.37,4.86926035]
[1756484189283,0.1,205.41,205.37,4.86926035]
[1756484189486,17.06260865,205.41,205.37,4.86926035]
[1756484189911,0.1,205.41,205.37,4.86926035]
[1756484190388,16.96260865,205.4,205.35,4.86958613]
[1756484190687,0.1,205.41,205.39,16.96260865]
[1756484190898,0.1,205.41,205.4,16.96260865]
[1756484191100,0.1,205.41,205.4,63.56260865]
[1756484191288,0.1,205.41,205.4,77.15820266]
[1756484191602,5.18699832,205.45,205.44,13.59559401]
[1756484191807,5.18699832,205.45,205.44,77.15820266]
[1756484191992,5.18699832,205.45,205.44,30.55820266]
[1756484192197,5.18699832,205.45,205.44,98.13820266]
[1756484192395,5.18699832,205.45,205.44,103.0058039]
[1756484192795,0.1,205.46,205.44,103.0058039]
[1756484192992,17.06260865,205.46,205.44,21.0]
[1756484193206,17.06260865,205.46,205.43,51.42760366]
[1756484193490,0.66,205.45,205.43,46.56]
[1756484193703,0.1,205.46,205.43,46.56]
[1756484193883,17.62260865,205.45,205.43,46.56]
[1756484194507,17.62260865,205.45,205.41,4.86815072]
[1756484194801,0.1,205.46,205.42,46.54]
[1756484195101,0.1,205.46,205.42,63.50260865]
[1756484195283,17.72260865,205.46,205.42,46.54]
[1756484195485,0.1,205.46,205.42,46.54]
[1756484195907,0.1,205.46,205.43,46.54]
[1756484196227,17.06260865,205.46,205.43,46.54]
[1756484196611,17.06260865,205.46,205.44,4.86760124]
[1756484196913,0.1,205.46,205.44,21.83020989]
[1756484197121,0.1,205.46,205.44,4.86760124]
[1756484197299,0.1,205.46,205.44,21.83020989]
[1756484197499,0.1,205.46,205.45,46.52]
[1756484197804,0.1,205.51,205.49,39.59559401]
[1756484197996,0.06,205.58,205.49,39.59559401]
[1756484197997,0.06,205.58,205.5,63.48260865]
[1756484198317,0.06,205.58,205.57,16.96260865]
[1756484198618,0.06,205.58,205.57,51.36452303]
[1756484199123,0.06,205.58,205.57,21.82713168]
[1756484199318,0.06,205.58,205.57,68.32713168]
[1756484199636,17.02260865,205.66,205.6,16.96260865]
[1756484199920,17.02260865,205.66,205.61,63.44260865]
[1756484199921,5.84699832,205.65,205.61,63.44260865]
[1756484200124,5.84699832,205.65,205.62,46.48]
[1756484200309,5.84699832,205.65,205.62,63.44260865]
[1756484200620,5.18699832,205.65,205.63,4.86310363]
[1756484200802,5.18699832,205.65,205.64,16.96260865]
[1756484201118,5.18699832,205.65,205.64,42.96260865]
[1756484201322,5.18699832,205.65,205.64,89.42260865]
[1756484202035,5.18699832,205.65,205.64,103.01820266]
[1756484202205,5.18699832,205.65,205.64,72.44]
[1756484202521,0.06,205.66,205.65,4.86263068]
[1756484202719,0.66,205.65,205.62,21.0]
[1756484202911,17.62260865,205.64,205.61,46.44]
[1756484203117,0.66,205.63,205.6,46.44]
[1756484203425,16.96260865,205.62,205.6,46.44]
[1756484203626,17.62260865,205.62,205.6,46.44]
[1756484203822,17.62260865,205.62,205.57,4.86452303]
[1756484204022,16.96260865,205.58,205.55,4.86499635]
[1756484204326,0.66,205.61,205.56,46.42]
[1756484204518,16.96260865,205.59,205.56,46.42]
[1756484204720,16.96260865,205.57,205.51,4.86594326]
[1756484204922,16.96260865,205.56,205.52,46.42]
[1756484205113,17.62260865,205.58,205.52,63.38260865]
[1756484205423,17.62260865,205.58,205.52,13.59559401]
[1756484205622,16.96260865,205.57,205.53,46.42]
[1756484205928,16.96260865,205.56,205.53,46.4]
[1756484206723,17.62260865,205.62,205.55,30.55820266]
[1756484206926,16.96260865,205.61,205.56,63.36260865]
[1756484207153,0.06,205.66,205.58,16.96260865]
[1756484207154,0.72,205.66,205.58,16.96260865]
[1756484207304,0.72,205.66,205.61,16.96260865]
[1756484207505,0.06,205.66,205.62,46.38]
[1756484208397,0.06,205.66,205.62,63.34260865]
[1756484208601,0.06,205.66,205.63,4.86310363]
[1756484209125,0.06,205.66,205.64,46.38]
[1756484209924,17.02260865,205.66,205.65,46.36]
[1756484210097,0.06,205.66,205.65,46.36]
[1756484210531,17.02260865,205.66,205.61,4.86357667]
[1756484210731,0.06,205.66,205.62,46.36]
[1756484211147,0.06,205.66,205.47,20.0]
[1756484211445,16.96260865,205.59,205.53,16.96260865]
[1756484211632,16.96260865,205.57,205.54,46.34]
[1756484211821,17.62260865,205.57,205.54,46.34]
[1756484212019,16.96260865,205.56,205.51,13.59559401]
[1756484212230,16.96260865,205.54,205.5,4.86618004]
[1756484212429,16.96260865,205.53,205.51,46.32]
[1756484212635,16.96260865,205.52,205.51,51.18594326]
[1756484212955,0.66,205.58,205.51,46.32]
[1756484213151,16.96260865,205.55,205.51,46.32]
[1756484213338,16.96260865,205.52,205.51,46.32]
[1756484213539,17.62260865,205.52,205.51,46.32]
[1756484213858,17.62260865,205.52,205.48,51.18665368]
[1756484214053,16.96260865,205.49,205.48,46.32]
[1756484214238,16.96260865,205.49,205.47,46.3]
[1756484214239,17.62260865,205.49,205.47,46.3]
[1756484214434,16.96260865,205.49,205.47,46.3]
[1756484215150,16.96260865,205.48,205.47,4.86689054]
[1756484215334,17.62260865,205.48,205.47,51.16689054]
[1756484215760,17.62260865,205.48,205.47,4.86689054]
[1756484216052,16.96260865,205.48,205.47,4.86689054]
[1756484216745,16.96260865,205.53,205.47,80.27672554]
[1756484217251,0.66,205.55,205.47,80.27672554]
[1756484217252,16.96260865,205.52,205.47,17.03411689]
[1756484217556,16.96260865,205.51,205.48,46.28]
[1756484217854,16.96260865,205.49,205.42,21.0]
[1756484218052,16.96260865,205.43,205.42,4.86807516]
[1756484218544,0.66,205.43,205.41,0.03]
[1756484218750,16.96260865,205.44,205.41,0.03]
[1756484219255,17.62260865,205.44,205.41,0.03]
[1756484219641,17.62260865,205.43,205.41,0.03]
[1756484219842,0.66,205.43,205.41,0.03]
[1756484220057,17.62260865,205.43,205.41,0.03]
[1756484220263,16.96260865,205.5,205.43,26.0]
[1756484220440,16.96260865,205.5,205.45,16.96260865]
[1756484220640,16.96260865,205.46,205.41,0.03]
[1756484220843,16.96260865,205.42,205.41,0.03]
[1756484221172,16.96260865,205.42,205.38,0.03]
[1756484221465,16.96260865,205.42,205.36,0.03]
[1756484221466,16.96260865,205.39,205.36,0.03]
[1756484221658,16.96260865,205.37,205.36,0.03]
[1756484221837,13.59559401,205.46,205.36,0.03]
[1756484222040,0.68,205.45,205.37,16.96260865]
[1756484222356,16.96260865,205.38,205.36,0.03]
[1756484222531,17.64260865,205.38,205.36,0.03]
[1756484222935,16.96260865,205.38,205.36,0.03]
[1756484223138,0.68,205.44,205.37,16.96260865]
[1756484223374,16.96260865,205.43,205.38,46.24]
[1756484223668,17.64260865,205.43,205.38,63.20260865]
[1756484223846,16.96260865,205.44,205.38,63.20260865]
[1756484224044,0.68,205.46,205.39,16.96260865]
[1756484224248,16.96260865,205.44,205.4,46.24]
[1756484224464,16.96260865,205.52,205.36,0.03]
[1756484224465,0.68,205.43,205.36,0.03]
[1756484224651,16.96260865,205.38,205.36,0.03]
[1756484224850,16.96260865,205.38,205.36,4.89949746]
[1756484225742,17.64260865,205.37,205.36,0.03]
[1756484226140,0.68,205.43,205.36,0.03]
[1756484226362,16.96260865,205.37,205.21,0.12]
[1756484226541,16.96260865,205.31,205.25,16.96260865]
[1756484226746,16.96260865,205.29,205.24,46.22]
[1756484226961,17.64260865,205.29,205.25,4.87210718]
[1756484227170,0.68,205.29,205.25,4.87210718]
[1756484227671,16.96260865,205.28,205.25,51.09210718]
[1756484227964,16.96260865,205.26,205.25,4.87210718]
[1756484228167,0.68,205.38,205.26,13.59559401]
[1756484228345,17.64260865,205.38,205.36,0.03]
[1756484228548,0.74,205.38,205.36,0.03]
[1756484229441,17.70260865,205.38,205.36,0.03]
[1756484229641,0.74,205.38,205.36,0.03]
[1756484230368,17.64260865,205.37,205.36,0.03]
[1756484230941,0.68,205.37,205.36,0.03]
[1756484231373,0.06,205.38,205.36,16.99260865]
[1756484231551,1e-08,205.38,205.37,30.55820266]
[1756484232071,1e-08,205.38,205.37,30.67820266]
[1756484232679,1e-08,205.38,205.37,76.73820266]
[1756484233157,1e-08,205.38,205.37,81.60746301]
[1756484234069,1e-08,205.38,205.37,68.011869]
[1756484234574,1e-08,205.38,205.37,88.991869]
[1756484235067,0.68000001,205.38,205.37,4.86926035]
[1756484235374,1e-08,205.38,205.37,4.86926035]
[1756484235549,17.64260866,205.38,205.36,4.89946685]
[1756484235750,0.68,205.37,205.36,46.19]
[1756484236272,17.64260865,205.37,205.36,0.03]
[1756484238874,0.68,205.37,205.36,0.03]
[1756484239066,1e-08,205.38,205.36,0.03]
[1756484239279,1e-08,205.38,205.36,46.15]
[1756484239958,0.68000001,205.38,205.36,46.15]
[1756484240367,1e-08,205.38,205.36,46.15]
[1756484240864,1e-08,205.38,205.31,26.0]
[1756484240865,0.14216157,205.36,205.28,4.87136169]
[1756484241174,0.14216157,205.36,205.25,46.1]
[1756484241175,16.96260865,205.29,205.25,46.1]
[1756484241355,16.96260865,205.32,205.26,16.96260865]
[1756484241551,16.96260865,205.31,205.25,46.1]
[1756484241750,16.96260865,205.3,205.25,46.1]
[1756484241968,16.96260865,205.31,205.26,46.1]
[1756484242571,16.96260865,205.3,205.26,46.1]
[1756484242771,0.68,205.34,205.26,46.1]
[1756484242972,16.96260865,205.3,205.27,4.87163248]
[1756484243173,16.96260865,205.3,205.24,38.18035336]
[1756484243174,16.96260865,205.28,205.24,46.1]
[1756484243370,16.96260865,205.25,205.2,5.073262]
[1756484243570,0.68,205.31,205.22,16.96260865]
[1756484243773,16.96260865,205.24,205.22,46.08]
[1756484243981,17.64260865,205.23,205.2,0.2]
[1756484244286,16.96260865,205.21,205.2,0.2]
[1756484244582,17.64260865,205.21,205.2,0.2]
[1756484245465,0.68,205.21,205.2,0.2]
[1756484245665,17.64260865,205.21,205.2,0.2]
[1756484246085,0.68,205.21,205.2,0.2]
[1756484246269,17.64260865,205.21,205.2,0.2]
[1756484246469,17.78477022,205.21,205.15,0.03]
[1756484246686,0.14216157,205.2,205.15,4.90440293]
[1756484246874,16.96260865,205.16,205.15,4.90440293]
[1756484247077,17.64260865,205.16,205.15,0.03]
[1756484247271,17.78477022,205.16,205.15,0.03]
[1756484247487,17.64260865,205.16,205.15,0.03]
[1756484247878,22.51685314,205.16,205.12,0.03]
[1756484248079,16.96260865,205.13,205.12,0.03]
[1756484248583,16.96260865,205.16,205.12,0.03]
[1756484248977,16.96260865,205.18,205.12,0.03]
[1756484249174,16.96260865,205.18,205.12,4.905195]
[1756484249376,16.96260865,205.14,205.12,0.03]
[1756484249780,16.96260865,205.17,205.12,0.03]
[1756484249976,16.96260865,205.19,205.13,16.96260865]
[1756484250172,16.96260865,205.21,205.15,16.96260865]
[1756484250368,39.59559401,205.12,204.96,0.44]
[1756484250587,16.96260865,205.08,205.01,16.96260865]
[1756484250770,0.68,205.12,205.03,16.96260865]
[1756484250963,16.96260865,205.1,205.03,16.96260865]
[1756484251167,16.96260865,205.08,205.02,42.96260865]
[1756484251888,16.96260865,205.08,205.02,26.0]
[1756484252205,16.96260865,205.07,205.02,26.0]
[1756484252387,16.96260865,205.07,204.99,13.59559401]
[1756484252388,0.68,205.1,205.0,46.04]
[1756484252693,0.68,205.21,205.1,13.59559401]
[1756484252990,0.68,205.2,205.11,13.59559401]
[1756484253174,16.96260865,205.18,205.11,13.59559401]
[1756484253374,16.96260865,205.2,205.14,56.55820266]
[1756484254071,16.96260865,205.19,205.14,39.59559401]
[1756484254387,16.96260865,205.15,205.14,72.04]
[1756484254587,16.96260865,205.15,205.14,46.04]
[1756484254892,16.96260865,205.16,205.14,46.04]
[1756484255387,16.96260865,205.18,205.14,46.04]
[1756484255591,16.96260865,205.15,205.11,21.0]
[1756484255782,16.96260865,205.13,205.1,26.0]
[1756484255970,16.96260865,205.12,205.1,26.0]
[1756484256369,16.96260865,205.11,205.05,13.59559401]
[1756484256574,16.96260865,205.09,205.06,46.02]
[1756484256774,16.96260865,205.08,205.06,46.02]
[1756484256984,16.96260865,205.09,205.04,13.59559401]
[1756484257195,16.96260865,205.08,205.05,46.02]
[1756484257491,16.96260865,205.09,205.05,46.02]
[1756484257880,16.96260865,205.06,205.02,46.02]
[1756484258073,0.68,205.12,205.02,62.98260865]
[1756484258275,16.96260865,205.1,205.04,16.96260865]
[1756484258597,16.96260865,205.07,205.02,46.02]
[1756484258893,16.96260865,205.07,205.03,46.0]
[1756484259090,16.96260865,205.06,205.03,46.0]
[1756484259498,16.96260865,205.04,205.0,46.0]
[1756484259674,16.96260865,205.03,205.0,46.0]
[1756484260406,16.96260865,205.05,205.0,46.0]
[1756484260588,16.96260865,205.06,205.0,46.0]
[1756484260791,26.0,205.02,204.98,0.2]
[1756484260977,26.0,204.93,204.91,0.2]
[1756484261177,43.10477022,204.93,204.91,0.2]
[1756484261385,43.78477022,204.93,204.91,0.2]
[1756484261594,16.96260865,204.93,204.91,0.2]
[1756484261778,16.96260865,204.94,204.91,0.2]
[1756484262090,16.96260865,204.95,204.91,0.2]
[1756484262479,16.96260865,204.93,204.91,0.2]
[1756484264301,17.64260865,204.93,204.91,0.2]
[1756484264976,17.78477022,204.93,204.91,0.2]
[1756484265176,0.14216157,204.92,204.91,0.2]
[1756484265422,17.64260865,204.92,204.91,0.2]
[1756484266281,16.96260865,204.92,204.91,0.2]
[1756484266604,17.64260865,204.92,204.91,0.2]
[1756484267101,0.06,205.1,204.91,0.2]
[1756484267407,16.96260865,204.94,204.91,0.2]
[1756484267586,16.96260865,204.96,204.91,0.86]
[1756484267781,16.96260865,204.97,204.91,17.82260865]
[1756484267990,16.96260865,204.96,204.91,0.2]
[1756484268697,16.96260865,204.97,204.91,17.16260865]
[1756484268999,16.96260865,205.01,204.94,16.96260865]
[1756484269204,16.96260865,205.0,204.94,16.96260865]
[1756484269409,16.96260865,204.99,204.93,62.92260865]
[1756484269586,16.96260865,205.0,204.94,16.96260865]
[1756484270004,16.96260865,204.95,204.91,0.2]
[1756484270188,16.96260865,204.94,204.91,26.2]
[1756484270387,16.96260865,204.95,204.91,26.2]
[1756484270880,16.96260865,204.94,204.91,0.2]
[1756484271091,16.96260865,204.92,204.91,0.2]
[1756484271302,0.14216157,204.98,204.91,0.2]
[1756484271497,16.96260865,204.92,204.91,0.2]
[1756484272113,16.96260865,204.96,204.91,0.2]
[1756484272608,16.96260865,204.94,204.91,0.2]
[1756484272906,16.96260865,204.95,204.91,0.2]
[1756484273203,16.96260865,204.94,204.91,0.2]
[1756484273406,16.96260865,204.94,204.91,5.08000349]
[1756484273790,16.96260865,204.95,204.91,5.08000349]
[1756484274402,26.68,205.02,204.92,0.66]
[1756484274728,0.68,205.06,204.96,16.96260865]
[1756484274894,16.96260865,205.02,204.96,16.96260865]
[1756484275288,16.96260865,205.01,204.96,45.92]
[1756484275511,5.55683217,205.06,204.96,4.87900078]
[1756484275695,16.96260865,205.02,204.96,22.50160943]
[1756484275896,16.96260865,205.02,204.96,68.42160943]
[1756484276091,16.96260865,204.97,204.95,26.0]
[1756484276297,16.96260865,204.96,204.95,26.0]
[1756484276490,16.96260865,204.97,204.95,26.0]
[1756484276690,0.68,205.02,204.95,26.0]
[1756484277310,16.96260865,205.02,204.96,42.96260865]
[1756484277507,16.96260865,205.02,204.96,88.86260865]
[1756484277708,16.96260865,205.05,204.98,13.59559401]
[1756484278030,0.06,205.1,204.96,26.0]
[1756484278031,0.68,205.04,204.96,26.0]
[1756484278321,16.96260865,204.98,204.96,26.0]
[1756484278813,16.96260865,204.97,204.96,26.0]
[1756484279198,0.68,205.01,204.96,4.87897779]
[1756484279507,16.96260865,204.97,204.93,45.9]
[1756484279700,16.96260865,204.94,204.92,4.87995315]
[1756484280082,16.96260865,204.94,204.91,5.08017917]
[1756484280288,16.96260865,204.92,204.91,0.2]
[1756484280500,0.68,204.93,204.91,0.2]
[1756484280695,16.96260865,204.92,204.91,0.2]
[1756484280905,17.65260865,204.92,204.91,0.2]
[1756484281301,16.96260865,204.92,204.91,0.2]
[1756484281690,17.65260865,204.92,204.91,0.2]
[1756484283105,22.5325618,204.92,204.91,0.2]
[1756484283296,22.67472337,204.92,204.91,0.2]
[1756484283496,62.27031738,204.92,204.91,0.2]
[1756484283709,26.14216157,204.9,204.89,0.03]
[1756484284000,16.96260865,204.9,204.89,0.03]